Workbook

Sheet Inicio_Merc_Comp
A25: Descargue la versión Kindle
K34: Miguel Cervantes Jiménez

Sheet Merc_Comp_y3 (hidden)
A1: MERCADOS COMPETITIVOS
C5: Parámetros función costos
C6: a (y3) | D6: 1.0
C7: b (y2) | D7: -2.3
C8: c (y) | D8: 40.0
C9: d | D9: 3,000.0
C10: Inserte los datos correspondientes
B11: Resultados del equilibrio
B12: Precio | D12: 500.0 | E12: =D12 -> 500.0
B13: Cantidad de equilibrio | D13: =Oculto_Merc_Comp!C16 -> 13.2 | E13: =Oculto_Merc_Comp!B16 -> 13.0
B14: Cantidad y (minimiza CMe) | D14: =J15 -> 11.84
B15: Costo unitario | D15: =Oculto_Merc_Comp!C17 -> 410.97 | E15: =Oculto_Merc_Comp!B17 -> 420.10 | I15: pegar | J15: 11.84359423
B16: Costo medio (mínimo) | D16: =Oculto_Merc_Comp!B31 -> 416.33 | I16: min=0 | J16: =2*D6*(J15)+D7-D9*(J15^(-2)) -> -2.553300621e-05
B17: Ingreso total | D17: =Oculto_Merc_Comp!C19 -> 6,586.6 | E17: =Oculto_Merc_Comp!B19 -> 6,519.0
B18: Costo total | D18: =Oculto_Merc_Comp!C20 -> 5,413.8 | E18: =Oculto_Merc_Comp!B20 -> 5,477.3
B19: Beneficio | D19: =Oculto_Merc_Comp!C21 -> 1,172.8 | E19: =Oculto_Merc_Comp!B21 -> 1,041.8
B20: Impuesto unitario | E20: 10.0
B22: Cuantificación de costos
B23: Costo total | D23: =Oculto_Merc_Comp!C23 -> 5,413.77 | E23: =Oculto_Merc_Comp!B23 -> 5,477.29
B24: Costo fijo | D24: =Oculto_Merc_Comp!C24 -> 3,000.00 | E24: =Oculto_Merc_Comp!B24 -> 3,000.00
B25: Costo variable | D25: =Oculto_Merc_Comp!C25 -> 2,413.77 | E25: =Oculto_Merc_Comp!B25 -> 2,477.29
B26: Costo medio | D26: =Oculto_Merc_Comp!C26 -> 410.97 | E26: =Oculto_Merc_Comp!B26 -> 420.10
B27: Costo marginal | D27: =Oculto_Merc_Comp!C27 -> 500.00 | E27: =Oculto_Merc_Comp!B27 -> 500.00
B28: Costo fijo medio | D28: =Oculto_Merc_Comp!C28 -> 227.74 | E28: =Oculto_Merc_Comp!B28 -> 230.10
B29: Costo variable medio | D29: =Oculto_Merc_Comp!C29 -> 183.23 | E29: =Oculto_Merc_Comp!B29 -> 190.00
B31: Títulos
B32: Resultados
B33: Insertar datos
B34: Valores de equilibrio

Sheet Merc_Comp_y3_Equilibrio (hidden)
A1: MERCADO COMPETITIVO
C5: Parámetros función costos
C6: a (y3) | D6: 3.0
C7: b (y2) | D7: -6.0
C8: c (y) | D8: 20.0
C9: d | D9: 120.0
C10: Inserte los datos correspondientes
B11: Resultados del equilibrio
B12: Precio | D12: 100.0
B13: Cantidad de equilibrio | D13: =Oculto_Merc_Comp!B58 -> 3.5
B14: Cantidad y (minimiza CMe) | D14: =I15 -> 3.09
B15: Costo unitario | D15: =Oculto_Merc_Comp!B59 -> 80.22 | H15: pegar | I15: 3.091977843
B16: Costo medio (mínimo) | D16: =Oculto_Merc_Comp!B73 -> 78.94 | H16: min=0 | I16: =2*D6*(I15)+D7-D9*(I15^(-2)) -> -4.885278814e-06
B17: Ingreso total | D17: =Oculto_Merc_Comp!B61 -> 353.4
B18: Costo total | D18: =Oculto_Merc_Comp!B62 -> 283.5
B19: Beneficio | D19: =Oculto_Merc_Comp!B63 -> 69.9
B20: Impuesto por unidad | D20: 10.0
D21: Inserte el impuesto
B22: Cuantificación de costos
B23: Costo total | D23: =Oculto_Merc_Comp!B65 -> 283.51
B24: Costo fijo | D24: =Oculto_Merc_Comp!B66 -> 120.00
B25: Costo variable | D25: =Oculto_Merc_Comp!B67 -> 163.51
B26: Costo medio | D26: =Oculto_Merc_Comp!B68 -> 80.22
B27: Costo marginal | D27: =Oculto_Merc_Comp!B69 -> 100.00
B28: Costo fijo medio | D28: =Oculto_Merc_Comp!B70 -> 33.95
B29: Costo variable medio | D29: =Oculto_Merc_Comp!B71 -> 46.27
B31: Títulos
B32: Resultados
B33: Insertar datos
B34: Valores de equilibrio

Sheet Merc_Comp_y3_Fn_Oferta (hidden)
A1: MERCADO COMPETITIVO
C5: Parámetros función costos
C6: a (y3) | D6: 0.06000
C7: b (y2) | D7: 0.00010
C8: c (y) | D8: 0.40
C9: d | D9: 45,000.0
C10: Inserte los datos correspondientes
B11: Resultados del equilibrio
B12: Precio | D12: 1,500.0
B13: Cantidad de equilibrio | D13: =Oculto_Merc_Comp!B99 -> 91.3
B14: Cantidad y (minimiza CMe) | D14: =I15 -> 72.11
B15: Costo unitario | D15: =Oculto_Merc_Comp!B100 -> 993.29 | H15: pegar | I15: 72.10980939
B16: Costo medio (mínimo) | D16: =Oculto_Merc_Comp!B116 -> 936.44 | H16: min=0 | I16: =2*D6*(I15)+D7-D9*(I15^(-2)) -> -0.0008609223369
B17: Costo variable medio (mínimo) | D17: =Oculto_Merc_Comp!B102 -> -0.00
B18: Cantidad y (minimiza CVMe) | D18: =Oculto_Merc_Comp!B103 -> 2.58
B19: Ingreso total | D19: =Oculto_Merc_Comp!B104 -> 136,911.5
B20: Costo total | D20: =Oculto_Merc_Comp!B105 -> 90,661.8
B21: Beneficio | D21: =Oculto_Merc_Comp!B106 -> 46,249.7
B23: Cuantificación de costos
B24: Costo total | D24: =Oculto_Merc_Comp!B108 -> 90,661.80
B25: Costo fijo | D25: =Oculto_Merc_Comp!B109 -> 45,000.00
B26: Costo variable | D26: =Oculto_Merc_Comp!B110 -> 45,661.80
B27: Costo medio | D27: =Oculto_Merc_Comp!B111 -> 993.29
B28: Costo marginal | D28: =Oculto_Merc_Comp!B112 -> 1,500.00
B29: Costo fijo medio | D29: =Oculto_Merc_Comp!B113 -> 493.02
B30: Costo variable medio | D30: =Oculto_Merc_Comp!B114 -> 500.27
B32: Títulos
B33: Resultados
B34: Insertar datos
B35: Valores de equilibrio

Sheet Oculto_Merc_Comp (hidden)
A1: FUNCIÒN DE COSTOS POLINOMIO DE TERCER GRADO COMPLETO | AC1: FUNCIÓN DE COSTOS DE SEGUNDO GRADO COMPLETO
D2: Ponderador | E2: Producto Total | F2: COSTO TOTAL | G2: COSTO MEDIO | H2: COSTO FIJO MEDIO | I2: COSTO VARIABLE MEDIO | J2: COSTO MARGINAL | K2: PRECIO=Ingreso Marginal | L2: COSTO UNITARIO | M2: LineY | N2: LineP | O2: LineCU | P2: P | Q2: IT | R2: Line Xprod | S2: Line Yprod | T2: Line X | U2: Line CT | V2: Line IT | W2: Max P | X2: Max P | Y2: OFERTA | Z2: Q
B3: con impuesto | C3: sin impuesto | D3: 0 | E3: =D3*$B$11 -> 0 | F3: =$B$7+($B$6*E3)+($B$5*(E3^2))+($B$4*(E3^3))+($B$9*(E3^4)) -> 3,000.00 | G3: 0 | H3: 0 | I3: =G3-H3 -> 0 | J3: =(4*$B$9*(E3^3))+(3*$B$4*(E3^2))+(2*$B$5*(E3^1))+($B$6) -> 50 | K3: =$B$15 -> 500.0 | L3: =$B$17 -> 420.1 | M3: =$B$16 -> 13.0 | N3: =(MAX(K3,L3))*D3 -> 0 | O3: =$B$16*D3 -> 0.0 | P3: =Q3-F3 -> (3,000.00) | Q3: =$B$15*E3 -> 0 | R3: =$E$17 -> 12.78 | S3: =D3*$N$26 -> 0 | T3: =$E$17*D3 -> 0 | U3: =$F$17 -> 5,349.40 | V3: =$Q$17 -> 6,388.66 | W3: =$P$26 -> 1,039.27 | X3: =D3*$P$26 -> 0 | AC3: FUNCIÒN DE COSTOS | AF3: Ponderador | AG3: Producto Total | AH3: COSTO TOTAL | AI3: COSTO MEDIO | AJ3: COSTO FIJO MEDIO | AK3: COSTO VARIABLE MEDIO | AL3: COSTO MARGINAL | AM3: PRECIO=Ingreso Marginal | AN3: COSTO UNITARIO | AO3: LineY | AP3: LineP | AQ3: LineCU | AR3: P | AS3: IT | AT3: Line Xprod | AU3: Line Yprod | AV3: Line X | AW3: Line CT | AX3: Line IT | AY3: Max P | AZ3: Max P
A4: a | B4: =Merc_Comp_y3!D6 -> 1.0 | C4: =B4 -> 1.0 | D4: 0.05 | E4: =D4*$B$11 -> 0.91 | F4: 3,044.48 | G4: =(F4/E4) -> 3,335.81 | H4: =$B$7/E4 -> 3,287.07 | I4: =G4-H4 -> 48.73 | J4: 48.30061421 | K4: =$B$15 -> 500.0 | L4: =$B$17 -> 420.1 | M4: =$B$16 -> 13.0 | N4: 25.00 | O4: =$B$16*D4 -> 0.7 | P4: (2,588.14) | Q4: =$B$15*E4 -> 456.33 | R4: =$E$17 -> 12.78 | S4: =D4*$N$26 -> 319.43 | T4: =$E$17*D4 -> 0.64 | U4: =$F$17 -> 5,349.40 | V4: =$Q$17 -> 6,388.66 | W4: =$P$26 -> 1039.267833 | X4: =D4*$P$26 -> 51.96339167 | Y4: =IF($J4>$I4,J4,($B$37*1.01)) -> 49.164275 | Z4: =IF(E4<$B$38,$B$38,E4) -> 1.15 | AF4: 0 | AG4: =AF4*$AD$11 -> 0 | AH4: =$AD$7+($AD$6*AG4)+($AD$5*(AG4^2)) -> 3,000.00 | AI4: 0 | AJ4: 0 | AK4: =AI4-AJ4 -> 0 | AL4: =(2*$AD$5*(AG4^1))+($AD$6) -> -20 | AM4: =$AD$15 -> 400.0 | AN4: =$AD$17 -> 247.1 | AO4: =$AD$16 -> 52.5 | AP4: =(MAX(AM4,AN4))*AF4 -> 0 | AQ4: =$AD$16*AF4 -> 0.0 | AR4: =AS4-AH4 -> (3,000.00) | AS4: =$AD$15*AG4 -> 0 | AT4: =$AD$13 -> 52.50 | AU4: =AF4*$AP$27 -> 0 | AV4: =$AD$16*AF4 -> 0 | AW4: =$AH$18 -> 12,559.41 | AX4: =$AS$18 -> 20,580.00 | AY4: =$AR$27 -> 8,020.59 | AZ4: =AF4*$AR$27 -> 0
A5: b | B5: =Merc_Comp_y3!D7 -> -2.3 | C5: =B5 -> -2.3 | D5: 0.10 | E5: 1.83 | F5: 3,089.69 | G5: 1,692.67 | H5: 1,643.54 | I5: 49.13 | J5: 51.59898543 | K5: 500.0 | L5: 420.1 | M5: 13.0 | N5: 50.00 | O5: 1.3 | P5: (2,177.02) | Q5: 912.67 | R5: 12.78 | S5: 638.87 | T5: 1.28 | U5: 5,349.40 | V5: 6,388.66 | W5: 1039.267833 | X5: 103.9267833 | Y5: =IF($J5>$I5,J5,($B$37*1.01)) -> 51.59898543 | Z5: =IF(E5<$B$38,$B$38,E5) -> 1.825332299 | AC5: b | AD5: =Merc_Comp_y2!D6 -> 4.0 | AE5: Y2 | AF5: 0.05 | AG5: 3.68 | AH5: =$AD$7+($AD$6*AG5)+($AD$5*(AG5^2)) -> 2,980.52 | AI5: =(AH5/AG5) -> 811.03 | AJ5: =$AD$7/AG5 -> 816.33 | AK5: =AI5-AJ5 -> -5.30 | AL5: =(2*$AD$5*(AG5^1))+($AD$6) -> 9.4 | AM5: =$AD$15 -> 400.0 | AN5: =$AD$17 -> 247.1 | AO5: =$AD$16 -> 52.5 | AP5: =(MAX(AM5,AN5))*AF5 -> 20.00 | AQ5: =$AD$16*AF5 -> 2.6 | AR5: =AS5-AH5 -> (1,510.52) | AS5: =$AD$15*AG5 -> 1,470.00 | AT5: =$AD$13 -> 52.50 | AU5: =AF5*$AP$27 -> 1,029.00 | AV5: =$AD$16*AF5 -> 2.63 | AW5: =$AH$18 -> 12,559.41 | AX5: =$AS$18 -> 20,580.00 | AY5: =$AR$27 -> 8020.59 | AZ5: =AF5*$AR$27 -> 401.0295
A6: c | B6: =Merc_Comp_y3!D8+Merc_Comp_y3!E20 -> 50.0 | C6: =Merc_Comp_y3!D8 -> 40.0 | D6: 0.15 | E6: 2.74 | F6: 3,140.18 | G6: 1,146.89 | H6: 1,095.69 | I6: 51.20 | J6: 59.89511364 | K6: 500.0 | L6: 420.1 | M6: 13.0 | N6: 75.00 | O6: 2.0 | P6: (1,771.18) | Q6: 1,369.00 | R6: 12.78 | S6: 958.30 | T6: 1.92 | U6: 5,349.40 | V6: 6,388.66 | W6: 1039.267833 | X6: 155.890175 | Y6: 59.89511364 | Z6: 2.737998448 | AC6: c | AD6: =Merc_Comp_y2!D7 -> -20.0 | AE6: Y | AF6: 0.10 | AG6: 7.35 | AH6: 3,069.09 | AI6: 417.56 | AJ6: =$AD$7/AG6 -> 408.16 | AK6: 9.40 | AL6: 38.8 | AM6: 400.0 | AN6: 247.1 | AO6: 52.5 | AP6: 40.00 | AQ6: 5.3 | AR6: (129.09) | AS6: 2,940.00 | AT6: 52.50 | AU6: 2,058.00 | AV6: 5.25 | AW6: 12,559.41 | AX6: 20,580.00 | AY6: 8020.59 | AZ6: 802.059
A7: d | B7: =Merc_Comp_y3!D9 -> 3000.0 | C7: =B7 -> 3000.0 | D7: 0.20 | E7: 3.65 | F7: 3,200.53 | G7: 876.70 | H7: 821.77 | I7: 54.93 | J7: 73.18899885 | K7: 500.0 | L7: 420.1 | M7: 13.0 | N7: 100.00 | O7: 2.6 | P7: (1,375.20) | Q7: 1,825.33 | R7: 12.78 | S7: 1,277.73 | T7: 2.56 | U7: 5,349.40 | V7: 6,388.66 | W7: 1039.267833 | X7: 207.8535667 | Y7: 73.18899885 | Z7: 3.650664597 | AC7: d | AD7: =Merc_Comp_y2!D8 -> 3000.0 | AE7: 0 | AF7: 0.15 | AG7: 11.03 | AH7: 3,265.70 | AI7: 296.21 | AJ7: 272.11 | AK7: 24.10 | AL7: 68.2 | AM7: 400.0 | AN7: 247.1 | AO7: 52.5 | AP7: 60.00 | AQ7: 7.9 | AR7: 1,144.30 | AS7: 4,410.00 | AT7: 52.50 | AU7: 3,087.00 | AV7: 7.88 | AW7: 12,559.41 | AX7: 20,580.00 | AY7: 8020.59 | AZ7: 1203.0885
A8: p | D8: 0.25 | E8: 4.56 | F8: 3,275.30 | G8: 717.74 | H8: 657.41 | I8: 60.33 | J8: 91.48064107 | K8: 500.0 | L8: 420.1 | M8: 13.0 | N8: 125.00 | O8: 3.3 | P8: (993.63) | Q8: 2,281.67 | R8: 12.78 | S8: 1,597.17 | T8: 3.19 | U8: 5,349.40 | V8: 6,388.66 | W8: 1039.267833 | X8: 259.8169583 | Y8: 91.48064107 | Z8: 4.563330746 | AC8: p | AF8: 0.20 | AG8: 14.70 | AH8: 3,570.36 | AI8: 242.88 | AJ8: 204.08 | AK8: 38.80 | AL8: 97.6 | AM8: 400.0 | AN8: 247.1 | AO8: 52.5 | AP8: 80.00 | AQ8: 10.5 | AR8: 2,309.64 | AS8: 5,880.00 | AT8: 52.50 | AU8: 4,116.00 | AV8: 10.50 | AW8: 12,559.41 | AX8: 20,580.00 | AY8: 8020.59 | AZ8: 1604.118
B9: 0.0 | C9: =B9 -> 0.0 | D9: 0.30 | E9: 5.48 | F9: 3,369.04 | G9: 615.24 | H9: 547.85 | I9: 67.39 | J9: 114.7700403 | K9: 500.0 | L9: 420.1 | M9: 13.0 | N9: 150.00 | O9: 3.9 | P9: (631.04) | Q9: 2,738.00 | R9: 12.78 | S9: 1,916.60 | T9: 3.83 | U9: 5,349.40 | V9: 6,388.66 | W9: 1039.267833 | X9: 311.78035 | Y9: 114.7700403 | Z9: 5.475996896 | AD9: 0.0 | AF9: 0.25 | AG9: 18.38 | AH9: 3,983.06 | AI9: 216.77 | AJ9: 163.27 | AK9: 53.50 | AL9: 127 | AM9: 400.0 | AN9: 247.1 | AO9: 52.5 | AP9: 100.00 | AQ9: 13.1 | AR9: 3,366.94 | AS9: 7,350.00 | AT9: 52.50 | AU9: 5,145.00 | AV9: 13.13 | AW9: 12,559.41 | AX9: 20,580.00 | AY9: 8020.59 | AZ9: 2005.1475
D10: 0.35 | E10: 6.39 | F10: 3,486.31 | G10: 545.70 | H10: 469.58 | I10: 76.12 | J10: 143.0571965 | K10: 500.0 | L10: 420.1 | M10: 13.0 | N10: 175.00 | O10: 4.6 | P10: (291.98) | Q10: 3,194.33 | R10: 12.78 | S10: 2,236.03 | T10: 4.47 | U10: 5,349.40 | V10: 6,388.66 | W10: 1039.267833 | X10: 363.7437417 | Y10: 143.0571965 | Z10: 6.388663045 | AF10: 0.30 | AG10: 22.05 | AH10: 4,503.81 | AI10: 204.25 | AJ10: 136.05 | AK10: 68.20 | AL10: 156.4 | AM10: 400.0 | AN10: 247.1 | AO10: 52.5 | AP10: 120.00 | AQ10: 15.8 | AR10: 4,316.19 | AS10: 8,820.00 | AT10: 52.50 | AU10: 6,174.00 | AV10: 15.75 | AW10: 12,559.41 | AX10: 20,580.00 | AY10: 8020.59 | AZ10: 2406.177
A11: Máxima cantidad de y | B11: =B35*1.4 -> 18.3 | C11: =B11 -> 18.3 | D11: 0.40 | E11: 7.30 | F11: 3,631.68 | G11: 497.40 | H11: 410.88 | I11: 86.52 | J11: 176.3421097 | K11: 500.0 | L11: 420.1 | M11: 13.0 | N11: 200.00 | O11: 5.2 | P11: 18.98 | Q11: 3,650.66 | R11: 12.78 | S11: 2,555.47 | T11: 5.11 | U11: 5,349.40 | V11: 6,388.66 | W11: 1039.267833 | X11: 415.7071333 | Y11: 176.3421097 | Z11: 7.301329194 | AC11: Máxima cantidad de y | AD11: =AD31*1.4 -> 73.5 | AF11: 0.35 | AG11: 25.73 | AH11: 5,132.60 | AI11: 199.52 | AJ11: 116.62 | AK11: 82.90 | AL11: 185.8 | AM11: 400.0 | AN11: 247.1 | AO11: 52.5 | AP11: 140.00 | AQ11: 18.4 | AR11: 5,157.40 | AS11: 10,290.00 | AT11: 52.50 | AU11: 7,203.00 | AV11: 18.38 | AW11: 12,559.41 | AX11: 20,580.00 | AY11: 8020.59 | AZ11: 2807.2065
A12: Cantidad y (minimiza CMe) | B12: 32.726 | C12: =B12 -> 32.726 | D12: 0.45 | E12: 8.21 | F12: 3,809.72 | G12: 463.81 | H12: 365.23 | I12: 98.58 | J12: 214.6247799 | K12: 500.0 | L12: 420.1 | M12: 13.0 | N12: 225.00 | O12: 5.9 | P12: 297.28 | Q12: 4,107.00 | R12: 12.78 | S12: 2,874.90 | T12: 5.75 | U12: 5,349.40 | V12: 6,388.66 | W12: 1039.267833 | X12: 467.670525 | Y12: 214.6247799 | Z12: 8.213995343 | AC12: Cantidad y (minimiza CMe) | AD12: =SQRT(AD7/AD5) -> 27.39 | AF12: 0.40 | AG12: 29.40 | AH12: 5,869.44 | AI12: 199.64 | AJ12: 102.04 | AK12: 97.60 | AL12: 215.2 | AM12: 400.0 | AN12: 247.1 | AO12: 52.5 | AP12: 160.00 | AQ12: 21.0 | AR12: 5,890.56 | AS12: 11,760.00 | AT12: 52.50 | AU12: 8,232.00 | AV12: 21.00 | AW12: 12,559.41 | AX12: 20,580.00 | AY12: 8020.59 | AZ12: 3208.236
A13: Inserte un valor y particular | B13: =B35 -> 13.0 | C13: =C35 -> 13.2 | D13: 0.50 | E13: 9.13 | F13: 4,024.97 | G13: 441.01 | H13: 328.71 | I13: 112.30 | J13: 257.9052071 | K13: 500.0 | L13: 420.1 | M13: 13.0 | N13: 250.00 | O13: 6.5 | P13: 538.36 | Q13: 4,563.33 | R13: 12.78 | S13: 3,194.33 | T13: 6.39 | U13: 5,349.40 | V13: 6,388.66 | W13: 1039.267833 | X13: 519.6339167 | Y13: 257.9052071 | Z13: 9.126661493 | AC13: Inserte un valor y particular | AD13: =AD31 -> 52.5 | AF13: 0.45 | AG13: 33.08 | AH13: 6,714.32 | AI13: 203.00 | AJ13: 90.70 | AK13: 112.30 | AL13: 244.6 | AM13: 400.0 | AN13: 247.1 | AO13: 52.5 | AP13: 180.00 | AQ13: 23.6 | AR13: 6,515.68 | AS13: 13,230.00 | AT13: 52.50 | AU13: 9,261.00 | AV13: 23.63 | AW13: 12,559.41 | AX13: 20,580.00 | AY13: 8020.59 | AZ13: 3609.2655
D14: 0.55 | E14: 10.04 | F14: 4,282.00 | G14: 426.52 | H14: 298.82 | I14: 127.70 | J14: 306.1833914 | K14: 500.0 | L14: 420.1 | M14: 13.0 | N14: 275.00 | O14: 7.2 | P14: 737.67 | Q14: 5,019.66 | R14: 12.78 | S14: 3,513.76 | T14: 7.03 | U14: 5,349.40 | V14: 6,388.66 | W14: 1039.267833 | X14: 571.5973083 | Y14: 306.1833914 | Z14: 10.03932764 | AF14: 0.50 | AG14: 36.75 | AH14: 7,667.25 | AI14: 208.63 | AJ14: 81.63 | AK14: 127.00 | AL14: 274 | AM14: 400.0 | AN14: 247.1 | AO14: 52.5 | AP14: 200.00 | AQ14: 26.3 | AR14: 7,032.75 | AS14: 14,700.00 | AT14: 52.50 | AU14: 10,290.00 | AV14: 26.25 | AW14: 12,559.41 | AX14: 20,580.00 | AY14: 8020.59 | AZ14: 4010.295
A15: Precio | B15: =Merc_Comp_y3!$D$12 -> 500.0 | C15: =B15 -> 500.0 | D15: 0.60 | E15: 10.95 | F15: 4,585.37 | G15: 418.68 | H15: 273.92 | I15: 144.76 | J15: 359.4593326 | K15: 500.0 | L15: 420.1 | M15: 13.0 | N15: 300.00 | O15: 7.8 | P15: 890.62 | Q15: 5,476.00 | R15: 12.78 | S15: 3,833.20 | T15: 7.67 | U15: 5,349.40 | V15: 6,388.66 | W15: 1039.267833 | X15: 623.5607 | Y15: 359.4593326 | Z15: 10.95199379 | AC15: Precio | AD15: =Merc_Comp_y2!D11 -> 400.0 | AF15: 0.55 | AG15: 40.43 | AH15: 8,728.22 | AI15: 215.91 | AJ15: 74.21 | AK15: 141.70 | AL15: 303.4 | AM15: 400.0 | AN15: 247.1 | AO15: 52.5 | AP15: 220.00 | AQ15: 28.9 | AR15: 7,441.78 | AS15: 16,170.00 | AT15: 52.50 | AU15: 11,319.00 | AV15: 28.88 | AW15: 12,559.41 | AX15: 20,580.00 | AY15: 8020.59 | AZ15: 4411.3245
A16: Cantidad de Equilibrio | B16: =B35 -> 13.0 | C16: =C35 -> 13.2 | D16: 0.65 | E16: 11.86 | F16: 4,939.65 | G16: 416.33 | H16: 252.85 | I16: 163.48 | J16: 417.7330308 | K16: 500.0 | L16: 420.1 | M16: 13.0 | N16: 325.00 | O16: 8.5 | P16: 992.68 | Q16: 5,932.33 | R16: 12.78 | S16: 4,152.63 | T16: 8.31 | U16: 5,349.40 | V16: 6,388.66 | W16: 1039.267833 | X16: 675.5240917 | Y16: 417.7330308 | Z16: 11.86465994 | AC16: Cantidad de Equilibrio | AD16: =AD31 -> 52.5 | AF16: 0.60 | AG16: 44.10 | AH16: 9,897.24 | AI16: 224.43 | AJ16: 68.03 | AK16: 156.40 | AL16: 332.8 | AM16: 400.0 | AN16: 247.1 | AO16: 52.5 | AP16: 240.00 | AQ16: 31.5 | AR16: 7,742.76 | AS16: 17,640.00 | AT16: 52.50 | AU16: 12,348.00 | AV16: 31.50 | AW16: 12,559.41 | AX16: 20,580.00 | AY16: 8020.59 | AZ16: 4812.354
A17: Costo Unitario | B17: =(B4*(B16^2))+(B5*B16)+B6+(B7/B16) -> 420.1 | C17: =(C4*(C16^2))+(C5*C16)+C6+(C7/C16) -> 411.0 | D17: 0.70 | E17: 12.78 | F17: 5,349.40 | G17: 418.66 | H17: 234.79 | I17: 183.87 | J17: 481.004486 | K17: 500.0 | L17: 420.1 | M17: 13.0 | N17: 350.00 | O17: 9.1 | P17: 1,039.27 | Q17: 6,388.66 | R17: 12.78 | S17: 4,472.06 | T17: 8.94 | U17: 5,349.40 | V17: 6,388.66 | W17: 1039.267833 | X17: 727.4874833 | Y17: 481.004486 | Z17: 12.77732609 | AC17: Costo Unitario | AD17: =(AD5*AD16)+AD6+(AD7/AD16) -> 247.1 | AF17: 0.65 | AG17: 47.78 | AH17: 11,174.30 | AI17: 233.89 | AJ17: 62.79 | AK17: 171.10 | AL17: 362.2 | AM17: 400.0 | AN17: 247.1 | AO17: 52.5 | AP17: 260.00 | AQ17: 34.1 | AR17: 7,935.70 | AS17: 19,110.00 | AT17: 52.50 | AU17: 13,377.00 | AV17: 34.13 | AW17: 12,559.41 | AX17: 20,580.00 | AY17: 8020.59 | AZ17: 5213.3835
A18: Cantidad y (minimiza CMe) | B18: =G17 -> 418.663 | C18: =B18 -> 418.663 | D18: 0.75 | E18: 13.69 | F18: 5,819.17 | G18: 425.07 | H18: 219.14 | I18: 205.93 | J18: 549.2736982 | K18: 500.0 | L18: 420.1 | M18: 13.0 | N18: 375.00 | O18: 9.8 | P18: 1,025.83 | Q18: 6,845.00 | R18: 12.78 | S18: 4,791.50 | T18: 9.58 | U18: 5,349.40 | V18: 6,388.66 | W18: 1039.267833 | X18: 779.450875 | Y18: 549.2736982 | Z18: 13.68999224 | AC18: Cantidad y (minimiza CMe) | AD18: =AD12 -> 27.386 | AF18: 0.70 | AG18: 51.45 | AH18: 12,559.41 | AI18: 244.11 | AJ18: 58.31 | AK18: 185.80 | AL18: 391.6 | AM18: 400.0 | AN18: 247.1 | AO18: 52.5 | AP18: 280.00 | AQ18: 36.8 | AR18: 8,020.59 | AS18: 20,580.00 | AT18: 52.50 | AU18: 14,406.00 | AV18: 36.75 | AW18: 12,559.41 | AX18: 20,580.00 | AY18: 8020.59 | AZ18: 5614.413
A19: Ingreso Total | B19: =B15*B16 -> 6519.043923 | C19: =C15*C16 -> 6586.580691 | D19: 0.80 | E19: 14.60 | F19: 6,353.52 | G19: 435.09 | H19: 205.44 | I19: 229.65 | J19: 622.5406674 | K19: 500.0 | L19: 420.1 | M19: 13.0 | N19: 400.00 | O19: 10.4 | P19: 947.81 | Q19: 7,301.33 | R19: 12.78 | S19: 5,110.93 | T19: 10.22 | U19: 5,349.40 | V19: 6,388.66 | W19: 1039.267833 | X19: 831.4142667 | Y19: 622.5406674 | Z19: 14.60265839 | AC19: Ingreso Total | AD19: =AD15*AD16 -> 21000.000 | AF19: 0.75 | AG19: 55.13 | AH19: 14,052.56 | AI19: 254.92 | AJ19: 54.42 | AK19: 200.50 | AL19: 421 | AM19: 400.0 | AN19: 247.1 | AO19: 52.5 | AP19: 300.00 | AQ19: 39.4 | AR19: 7,997.44 | AS19: 22,050.00 | AT19: 52.50 | AU19: 15,435.00 | AV19: 39.38 | AW19: 12,559.41 | AX19: 20,580.00 | AY19: 8020.59 | AZ19: 6015.4425
A20: Costo Total | B20: =B23 -> 5477.291 | C20: =C23 -> 5413.770 | D20: 0.85 | E20: 15.52 | F20: 6,957.03 | G20: 448.40 | H20: 193.36 | I20: 255.04 | J20: 700.8053936 | K20: 500.0 | L20: 420.1 | M20: 13.0 | N20: 425.00 | O20: 11.1 | P20: 800.63 | Q20: 7,757.66 | R20: 12.78 | S20: 5,430.36 | T20: 10.86 | U20: 5,349.40 | V20: 6,388.66 | W20: 1039.267833 | X20: 883.3776583 | Y20: 700.8053936 | Z20: 15.51532454 | AC20: Costo Total | AD20: =AD23 -> 12975.000 | AF20: 0.80 | AG20: 58.80 | AH20: 15,653.76 | AI20: 266.22 | AJ20: 51.02 | AK20: 215.20 | AL20: 450.4 | AM20: 400.0 | AN20: 247.1 | AO20: 52.5 | AP20: 320.00 | AQ20: 42.0 | AR20: 7,866.24 | AS20: 23,520.00 | AT20: 52.50 | AU20: 16,464.00 | AV20: 42.00 | AW20: 12,559.41 | AX20: 20,580.00 | AY20: 8020.59 | AZ20: 6416.472
A21: Beneficio | B21: =B19-B20 -> 1,041.8 | C21: =C19-C20 -> 1,172.8 | D21: 0.90 | E21: 16.43 | F21: 7,634.25 | G21: 464.71 | H21: 182.62 | I21: 282.09 | J21: 784.0678769 | K21: 500.0 | L21: 420.1 | M21: 13.0 | N21: 450.00 | O21: 11.7 | P21: 579.75 | Q21: 8,214.00 | R21: 12.78 | S21: 5,749.80 | T21: 11.50 | U21: 5,349.40 | V21: 6,388.66 | W21: 1039.267833 | X21: 935.34105 | Y21: 784.0678769 | Z21: 16.42799069 | AC21: Beneficio | AD21: =AD19-AD20 -> 8,025.0 | AF21: 0.85 | AG21: 62.48 | AH21: 17,363.00 | AI21: 277.92 | AJ21: 48.02 | AK21: 229.90 | AL21: 479.8 | AM21: 400.0 | AN21: 247.1 | AO21: 52.5 | AP21: 340.00 | AQ21: 44.6 | AR21: 7,627.00 | AS21: 24,990.00 | AT21: 52.50 | AU21: 17,493.00 | AV21: 44.63 | AW21: 12,559.41 | AX21: 20,580.00 | AY21: 8020.59 | AZ21: 6817.5015
D22: 0.95 | E22: 17.34 | F22: 8,389.73 | G22: 483.82 | H22: 173.00 | I22: 310.81 | J22: 872.3281171 | K22: 500.0 | L22: 420.1 | M22: 13.0 | N22: 475.00 | O22: 12.4 | P22: 280.59 | Q22: 8,670.33 | R22: 12.78 | S22: 6,069.23 | T22: 12.14 | U22: 5,349.40 | V22: 6,388.66 | W22: 1039.267833 | X22: 987.3044417 | Y22: 872.3281171 | Z22: 17.34065684 | AF22: 0.90 | AG22: 66.15 | AH22: 19,180.29 | AI22: 289.95 | AJ22: 45.35 | AK22: 244.60 | AL22: 509.2 | AM22: 400.0 | AN22: 247.1 | AO22: 52.5 | AP22: 360.00 | AQ22: 47.3 | AR22: 7,279.71 | AS22: 26,460.00 | AT22: 52.50 | AU22: 18,522.00 | AV22: 47.25 | AW22: 12,559.41 | AX22: 20,580.00 | AY22: 8020.59 | AZ22: 7218.531
A23: Costo Total | B23: =B4*(B13^(3))+B5*(B13^(2))+B6*B13+B7 -> 5477.3 | C23: =C4*(C13^(3))+C5*(C13^(2))+C6*C13+C7 -> 5413.8 | D23: 1.00 | E23: 18.25 | F23: 9,228.05 | G23: 505.55 | H23: 164.35 | I23: 341.20 | J23: 965.5861143 | K23: 500.0 | L23: 420.1 | M23: 13.0 | N23: 500.00 | O23: 13.0 | P23: (101.39) | Q23: 9,126.66 | R23: 12.78 | S23: 6,388.66 | T23: 12.78 | U23: 5,349.40 | V23: 6,388.66 | W23: 1039.267833 | X23: 1039.267833 | Y23: 965.5861143 | Z23: 18.25332299 | AC23: Costo Total | AD23: =AD5*(AD13^(2))+AD6*AD13+AD7 -> 12975.0 | AF23: 0.95 | AG23: 69.83 | AH23: 21,105.62 | AI23: 302.26 | AJ23: 42.96 | AK23: 259.30 | AL23: 538.6 | AM23: 400.0 | AN23: 247.1 | AO23: 52.5 | AP23: 380.00 | AQ23: 49.9 | AR23: 6,824.38 | AS23: 27,930.00 | AT23: 52.50 | AU23: 19,551.00 | AV23: 49.88 | AW23: 12,559.41 | AX23: 20,580.00 | AY23: 8020.59 | AZ23: 7619.5605
A24: Costo Fijo | B24: =B7 -> 3000.0 | C24: =C7 -> 3000.0 | D24: 1.00 | E24: =B13 -> 13.04 | F24: 5,477.29 | G24: =(F24/E24) -> 420.10 | H24: 230.10 | I24: =G24-H24 -> 190.00 | J24: 500 | P24: 1,041.75 | Q24: =$B$15*E24 -> 6,519.04 | AC24: Costo Fijo | AD24: =AD7 -> 3000.0 | AF24: 1.00 | AG24: =AF24*$AD$11 -> 73.50 | AH24: 23,139.00 | AI24: 314.82 | AJ24: 40.82 | AK24: 274.00 | AL24: 568 | AM24: 400.0 | AN24: 247.1 | AO24: 52.5 | AP24: 400.00 | AQ24: 52.5 | AR24: 6,261.00 | AS24: 29,400.00 | AT24: 52.50 | AU24: 20,580.00 | AV24: 52.50 | AW24: 12,559.41 | AX24: 20,580.00 | AY24: 8020.59 | AZ24: 8020.59
A25: Costo Variable | B25: =B23-B24 -> 2477.3 | C25: =C23-C24 -> 2413.8 | AC25: Costo Variable | AD25: =AD23-AD24 -> 9975.0 | AF25: 1.00 | AG25: =$AD$31 -> 52.50 | AH25: 12,975.00 | AI25: =(AH25/AG25) -> 247.14 | AJ25: 57.14 | AK25: =AI25-AJ25 -> 190.00 | AL25: 400
A26: Costo Medio | B26: =B23/B13 -> 420.1 | C26: =C23/C13 -> 411.0 | F26: =G23*1.1 -> 556.11 | M26: MAX CT, IT | N26: =MAX(F17,Q17) -> 6,388.66 | O26: Max P | P26: =MAX(P3:P23) -> 1,039.27 | AC26: Costo Medio | AD26: =AD23/AD13 -> 247.1
A27: Costo Marginal | B27: =(3*B4*(B13^(2)))+(2*B5*B13)+B6 -> 500.0 | C27: =(3*C4*(C13^(2)))+(2*C5*C13)+C6 -> 500.0 | F27: 102.025 | AC27: Costo Marginal | AD27: =(2*AD5*AD13)+AD6 -> 400.0 | AF27: 100.00 | AH27: =AI24*1.1 -> 346.30 | AO27: MAX CT, IT | AP27: =MAX(AH18,AS18) -> 20,580.00 | AQ27: Max P | AR27: =MAX(AR4:AR24) -> 8,020.59
A28: Costo Fijo Medio | B28: =B24/B13 -> 230.1 | C28: =C24/C13 -> 227.7 | AC28: Costo Fijo Medio | AD28: =AD24/AD13 -> 57.1 | AF28: =AD5-(AD7*(POWER(AF27,-2))) -> 3.70 | AH28: 102.025
A29: Costo Variable Medio | B29: =B25/B13 -> 190.0 | C29: =C25/C13 -> 183.2 | AC29: Costo Variable Medio | AD29: =AD25/AD13 -> 190.0
A30: min | B30: =(B4*(B12^(3))+B5*(B12^(2))+B6*B12+B7)/B12 -> 1137.4 | C30: =(C4*(C12^(3))+C5*(C12^(2))+C6*C12+C7)/C12 -> 1127.4
A31: costo mínimo | B31: =(B4*(Merc_Comp_y3!D14^(3))+B5*(Merc_Comp_y3!D14^(2))+B6*Merc_Comp_y3!D14+B7)/Merc_Comp_y3!D14 -> 416.331942 | C31: =(C4*(Merc_Comp_y3!F14^(3))+C5*(Merc_Comp_y3!F14^(2))+C6*Merc_Comp_y3!F14+C7)/Merc_Comp_y3!F14 ->  | AC31: y2 equilibrio | AD31: =(AD15-AD6)/(2*AD5) -> 52.5
B32: =2*B4*(B12)+B5-B7*(B12^(-2)) -> 60.350089 | C32: =2*C4*(C12)+C5-C7*(C12^(-2)) -> 60.350089
A34: y1 equilibrio | B34: =((-1*(2*B5*-1))+((((2*-1*B5)^(2))-((4*(3*-1*B4))*((B6*-1)+B15)))^(1/2)))/((2*(3*-1)*B4)) -> -11.5 | C34: =((-1*(2*C5*-1))+((((2*-1*C5)^(2))-((4*(3*-1*C4))*((C6*-1)+C15)))^(1/2)))/((2*(3*-1)*C4)) -> -11.6
A35: y2 equilibrio | B35: =((-1*(2*B5*-1))-((((2*-1*B5)^(2))-((4*(3*-1*B4))*((B6*-1)+B15)))^(1/2)))/((2*(3*-1)*B4)) -> 13.0 | C35: =((-1*(2*C5*-1))-((((2*-1*C5)^(2))-((4*(3*-1*C4))*((C6*-1)+C15)))^(1/2)))/((2*(3*-1)*C4)) -> 13.2
A37: Min CMg | B37: =(3*B4*(B38^2))+(2*B5*B38)+B6 -> 48.7 | C37: =(3*C4*(C38^2))+(2*C5*C38)+C6 -> 38.7
B38: =(B5/(2*B4))*-1 -> 1.2 | C38: =(C5/(2*C4))*-1 -> 1.2 | AC38: FUNCIÓN DE COSTOS DE SEGUNDO GRADO ÚNICAMENTE EQUILIBRIO
AF40: Ponderador | AG40: Producto Total | AH40: COSTO TOTAL | AI40: COSTO MEDIO | AJ40: COSTO FIJO MEDIO | AK40: COSTO VARIABLE MEDIO | AL40: COSTO MARGINAL | AM40: PRECIO=Ingreso Marginal | AN40: COSTO UNITARIO | AO40: LineY | AP40: LineP | AQ40: LineCU | AR40: P | AS40: IT | AT40: Line Xprod | AU40: Line Yprod | AV40: Line X | AW40: Line CT | AX40: Line IT | AY40: Max P | AZ40: Max P
AF41: 0 | AG41: =AF41*$AD$48 -> 0 | AH41: =$AD$44+($AD$43*AG41)+($AD$42*(AG41^2)) -> 2,000.00 | AI41: 0 | AJ41: 0 | AK41: =AI41-AJ41 -> 0 | AL41: =(2*$AD$42*(AG41^1))+($AD$43) -> -20 | AM41: =$AD$52 -> 158.0 | AN41: =$AD$54 -> 158.9 | AO41: =$AD$53 -> 22.3 | AP41: =(MAX(AM41,AN41))*AF41 -> 0 | AQ41: =$AD$53*AF41 -> 0.0 | AR41: =AS41-AH41 -> (2,000.00) | AS41: =$AD$52*AG41 -> 0 | AT41: =$AD$55 -> 158.94 | AU41: =AF41*$AD$64 -> 0 | AV41: =$AG$55*AF41 -> 0 | AW41: =$AH$55 -> 3,465.73 | AX41: =$AS$55 -> 3,445.19 | AY41: =$AR$64 -> (20.54) | AZ41: =AF41*$AR$64 -> 0
AC42: b | AD42: =Merc_Comp_y2_Equilibrio!D6 -> 4.0 | AE42: Y2 | AF42: 0.05 | AG42: =AF42*$AD$48 -> 1.56 | AH42: =$AD$44+($AD$43*AG42)+($AD$42*(AG42^2)) -> 1,978.55 | AI42: =(AH42/AG42) -> 1,270.34 | AJ42: =$AD$44/AG42 -> 1,284.11 | AK42: =AI42-AJ42 -> -13.77 | AL42: =(2*$AD$42*(AG42^1))+($AD$43) -> -7.54 | AM42: =$AD$52 -> 158.0 | AN42: =$AD$54 -> 158.9 | AO42: =$AD$53 -> 22.3 | AP42: =(MAX(AM42,AN42))*AF42 -> 7.94 | AQ42: =$AD$53*AF42 -> 1.1 | AR42: =AS42-AH42 -> (1,732.47) | AS42: =$AD$52*AG42 -> 246.09 | AT42: =$AD$55 -> 158.94 | AU42: =AF42*$AD$64 -> 7.90 | AV42: =$AG$55*AF42 -> 1.09 | AW42: =$AH$55 -> 3,465.73 | AX42: =$AS$55 -> 3,445.19 | AY42: =$AR$64 -> (20.54) | AZ42: =AF42*$AR$64 -> (1.03)
A43: FUNCIÒN DE COSTOS POLINOMIO DE TERCER GRADO UNICAMENTE EQUILIBRIO | AC43: c | AD43: =Merc_Comp_y2_Equilibrio!D7 -> -20.0 | AE43: Y | AF43: 0.10 | AG43: 3.12 | AH43: 1,976.51 | AI43: 634.51 | AJ43: =$AD$44/AG43 -> 642.05 | AK43: -7.54 | AL43: 4.92 | AM43: 158.0 | AN43: 158.9 | AO43: 22.3 | AP43: 15.89 | AQ43: 2.2 | AR43: (1,484.34) | AS43: 492.17 | AT43: 158.94 | AU43: 15.80 | AV43: 2.18 | AW43: 3,465.73 | AX43: 3,445.19 | AY43: (20.54) | AZ43: (2.05)
D44: Ponderador | E44: Producto Total | F44: COSTO TOTAL | G44: COSTO MEDIO | H44: COSTO FIJO MEDIO | I44: COSTO VARIABLE MEDIO | J44: COSTO MARGINAL | K44: PRECIO=Ingreso Marginal | L44: COSTO UNITARIO | M44: LineY | N44: LineP | O44: LineCU | P44: P | Q44: IT | R44: Line Xprod | S44: Line Yprod | T44: Line X | U44: Line CT | V44: Line IT | W44: Max P | X44: Max P | Y44: OFERTA | Z44: Q | AC44: d | AD44: =Merc_Comp_y2_Equilibrio!D8 -> 2000.0 | AE44: 0 | AF44: 0.15 | AG44: 4.67 | AH44: 1,993.88 | AI44: 426.73 | AJ44: 428.04 | AK44: -1.31 | AL44: 17.38 | AM44: 158.0 | AN44: 158.9 | AO44: 22.3 | AP44: 23.83 | AQ44: 3.3 | AR44: (1,255.62) | AS44: 738.26 | AT44: 158.94 | AU44: 23.70 | AV44: 3.27 | AW44: 3,465.73 | AX44: 3,445.19 | AY44: (20.54) | AZ44: (3.08)
D45: 0 | E45: =D45*$B$53 -> 0 | F45: =$B$49+($B$48*E45)+($B$47*(E45^2))+($B$46*(E45^3))+($B$51*(E45^4)) -> 120.00 | G45: 0 | H45: 0 | I45: =G45-H45 -> 0 | J45: =(4*$B$9*(E45^3))+(3*$B$4*(E45^2))+(2*$B$5*(E45^1))+($B$6) -> 50 | K45: =$B$57 -> 100.0 | L45: =$B$59 -> 80.2 | M45: =$B$58 -> 3.5 | N45: =(MAX(K45,L45))*D45 -> 0 | O45: =$B$58*D45 -> 0.0 | P45: =Q45-F45 -> (120.00) | Q45: =$B$57*E45 -> 0 | R45: =$E$59 -> 3.46 | S45: =D45*$N$68 -> 0 | T45: =$E$59*D45 -> 0 | U45: =$F$59 -> 276.57 | V45: =$Q$59 -> 346.34 | W45: =$P$68 -> 69.78 | X45: =D45*$P$68 -> 0 | AC45: p | AF45: 0.20 | AG45: 6.23 | AH45: 2,030.65 | AI45: 325.95 | AJ45: 321.03 | AK45: 4.92 | AL45: 29.84 | AM45: 158.0 | AN45: 158.9 | AO45: 22.3 | AP45: 31.78 | AQ45: 4.5 | AR45: (1,046.31) | AS45: 984.34 | AT45: 158.94 | AU45: 31.60 | AV45: 4.36 | AW45: 3,465.73 | AX45: 3,445.19 | AY45: (20.54) | AZ45: (4.11)
A46: a | B46: =Merc_Comp_y3_Equilibrio!D6 -> 3.0 | D46: 0.05 | E46: =D46*$B$53 -> 0.25 | F46: =$B$49+($B$48*E46)+($B$47*(E46^2))+($B$46*(E46^3))+($B$51*(E46^4)) -> 127.10 | G46: =(F46/E46) -> 513.77 | H46: =$B$49/E46 -> 485.07 | I46: =G46-H46 -> 28.70 | J46: =(4*$B$51*(E46^3))+(3*$B$46*(E46^2))+(2*$B$47*(E46^1))+($B$48) -> 27.5821545 | K46: =$B$57 -> 100.0 | L46: =$B$59 -> 80.2 | M46: =$B$58 -> 3.5 | N46: 5.00 | O46: =$B$58*D46 -> 0.2 | P46: (102.36) | Q46: =$B$57*E46 -> 24.74 | R46: =$E$59 -> 3.46 | S46: =D46*$N$68 -> 17.32 | T46: =$E$59*D46 -> 0.17 | U46: =$F$59 -> 276.57 | V46: =$Q$59 -> 346.34 | W46: =$P$68 -> 69.78 | X46: =D46*$P$68 -> 3.488851646 | Y46: =IF($J46>$I46,J46,($B$79*1.01)) -> 27.27 | Z46: =IF(E46<$B$80,$B$80,E46) -> 1 | AD46: 0.0 | AF46: 0.25 | AG46: 7.79 | AH46: 2,086.83 | AI46: 267.97 | AJ46: 256.82 | AK46: 11.15 | AL46: 42.3 | AM46: 158.0 | AN46: 158.9 | AO46: 22.3 | AP46: 39.72 | AQ46: 5.6 | AR46: (856.41) | AS46: 1,230.43 | AT46: 158.94 | AU46: 39.50 | AV46: 5.45 | AW46: 3,465.73 | AX46: 3,445.19 | AY46: (20.54) | AZ46: (5.14)
A47: b | B47: =Merc_Comp_y3_Equilibrio!D7 -> -6.0 | D47: 0.10 | E47: 0.49 | F47: 133.74 | G47: 270.30 | H47: =$B$49/E47 -> 242.53 | I47: 27.77 | J47: =(4*$B$51*(E47^3))+(3*$B$46*(E47^2))+(2*$B$47*(E47^1))+($B$48) -> 26.26592015 | K47: 100.0 | L47: 80.2 | M47: 3.5 | N47: 10.00 | O47: 0.4 | P47: (84.26) | Q47: 49.48 | R47: 3.46 | S47: 34.63 | T47: 0.35 | U47: 276.57 | V47: 346.34 | W47: 69.78 | X47: 6.977703292 | Y47: =IF($J47>$I47,J47,($B$79*1.01)) -> 27.27 | Z47: =IF(E47<$B$80,$B$80,E47) -> 1 | AF47: 0.30 | AG47: 9.35 | AH47: 2,162.42 | AI47: 231.40 | AJ47: 214.02 | AK47: 17.38 | AL47: 54.76 | AM47: 158.0 | AN47: 158.9 | AO47: 22.3 | AP47: 47.67 | AQ47: 6.7 | AR47: (685.91) | AS47: 1,476.51 | AT47: 158.94 | AU47: 47.40 | AV47: 6.54 | AW47: 3,465.73 | AX47: 3,445.19 | AY47: (20.54) | AZ47: (6.16)
A48: c | B48: =Merc_Comp_y3_Equilibrio!D8+B64 -> 30.0 | D48: 0.15 | E48: 0.74 | F48: 140.19 | G48: 188.89 | H48: 161.69 | I48: 27.20 | J48: 26.05129695 | K48: 100.0 | L48: 80.2 | M48: 3.5 | N48: 15.00 | O48: 0.5 | P48: (65.97) | Q48: 74.22 | R48: 3.46 | S48: 51.95 | T48: 0.52 | U48: 276.57 | V48: 346.34 | W48: 69.78 | X48: 10.46655494 | Y48: 27.27 | Z48: 1 | AC48: Máxima cantidad de y | AD48: =AD68*1.4 -> 31.2 | AF48: 0.35 | AG48: 10.90 | AH48: 2,257.41 | AI48: 207.05 | AJ48: 183.44 | AK48: 23.61 | AL48: 67.22 | AM48: 158.0 | AN48: 158.9 | AO48: 22.3 | AP48: 55.61 | AQ48: 7.8 | AR48: (534.81) | AS48: 1,722.60 | AT48: 158.94 | AU48: 55.30 | AV48: 7.63 | AW48: 3,465.73 | AX48: 3,445.19 | AY48: (20.54) | AZ48: (7.19)
A49: d | B49: =Merc_Comp_y3_Equilibrio!D9 -> 120.0 | D49: 0.20 | E49: 0.99 | F49: 146.72 | G49: 148.27 | H49: 121.27 | I49: 27.00 | J49: 26.9382849 | K49: 100.0 | L49: 80.2 | M49: 3.5 | N49: 20.00 | O49: 0.7 | P49: (47.76) | Q49: 98.96 | R49: 3.46 | S49: 69.27 | T49: 0.69 | U49: 276.57 | V49: 346.34 | W49: 69.78 | X49: 13.95540658 | Y49: 27.27 | Z49: 1 | AC49: Cantidad y (minimiza CMe) | AD49: =SQRT(AD44/AD42) -> 22.36 | AF49: 0.40 | AG49: 12.46 | AH49: 2,371.81 | AI49: 190.35 | AJ49: 160.51 | AK49: 29.84 | AL49: 79.68 | AM49: 158.0 | AN49: 158.9 | AO49: 22.3 | AP49: 63.56 | AQ49: 8.9 | AR49: (403.13) | AS49: 1,968.68 | AT49: 158.94 | AU49: 63.20 | AV49: 8.72 | AW49: 3,465.73 | AX49: 3,445.19 | AY49: (20.54) | AZ49: (8.22)
A50: p | D50: 0.25 | E50: 1.24 | F50: 153.61 | G50: 124.18 | H50: 97.01 | I50: 27.17 | J50: 28.92688401 | K50: 100.0 | L50: 80.2 | M50: 3.5 | N50: 25.00 | O50: 0.9 | P50: (29.91) | Q50: 123.69 | R50: 3.46 | S50: 86.59 | T50: 0.87 | U50: 276.57 | V50: 346.34 | W50: 69.78 | X50: 17.44425823 | Y50: 28.92688401 | Z50: 1.236937948 | AC50: Inserte un valor y particular | AD50: =AD68 -> 22.3 | AF50: 0.45 | AG50: 14.02 | AH50: 2,505.61 | AI50: 178.75 | AJ50: 142.68 | AK50: 36.07 | AL50: 92.14 | AM50: 158.0 | AN50: 158.9 | AO50: 22.3 | AP50: 71.50 | AQ50: 10.0 | AR50: (290.85) | AS50: 2,214.77 | AT50: 158.94 | AU50: 71.10 | AV50: 9.81 | AW50: 3,465.73 | AX50: 3,445.19 | AY50: (20.54) | AZ50: (9.24)
B51: 0.0 | D51: 0.30 | E51: 1.48 | F51: 161.12 | G51: 108.55 | H51: 80.84 | I51: 27.70 | J51: 32.01709426 | K51: 100.0 | L51: 80.2 | M51: 3.5 | N51: 30.00 | O51: 1.1 | P51: (12.69) | Q51: 148.43 | R51: 3.46 | S51: 103.90 | T51: 1.04 | U51: 276.57 | V51: 346.34 | W51: 69.78 | X51: 20.93310988 | Y51: 32.01709426 | Z51: 1.484325537 | AF51: 0.50 | AG51: 15.58 | AH51: 2,658.82 | AI51: 170.71 | AJ51: 128.41 | AK51: 42.30 | AL51: 104.6 | AM51: 158.0 | AN51: 158.9 | AO51: 22.3 | AP51: 79.44 | AQ51: 11.1 | AR51: (197.97) | AS51: 2,460.85 | AT51: 158.94 | AU51: 79.00 | AV51: 10.90 | AW51: 3,465.73 | AX51: 3,445.19 | AY51: (20.54) | AZ51: (10.27)
D52: 0.35 | E52: 1.73 | F52: 169.54 | G52: 97.90 | H52: 69.30 | I52: 28.61 | J52: 36.20891566 | K52: 100.0 | L52: 80.2 | M52: 3.5 | N52: 35.00 | O52: 1.2 | P52: 3.63 | Q52: 173.17 | R52: 3.46 | S52: 121.22 | T52: 1.21 | U52: 276.57 | V52: 346.34 | W52: 69.78 | X52: 24.42196152 | Y52: 36.20891566 | Z52: 1.731713127 | AC52: Precio | AD52: =Merc_Comp_y2_Equilibrio!D11 -> 158.0 | AF52: 0.55 | AG52: 17.13 | AH52: 2,831.44 | AI52: 165.27 | AJ52: 116.74 | AK52: 48.53 | AL52: 117.06 | AM52: 158.0 | AN52: 158.9 | AO52: 22.3 | AP52: 87.39 | AQ52: 12.2 | AR52: (124.51) | AS52: 2,706.94 | AT52: 158.94 | AU52: 86.90 | AV52: 11.99 | AW52: 3,465.73 | AX52: 3,445.19 | AY52: (20.54) | AZ52: (11.30)
A53: Máxima cantidad de y | B53: =B77*1.4 -> 4.9 | D53: 0.40 | E53: 1.98 | F53: 179.13 | G53: 90.51 | H53: 60.63 | I53: 29.88 | J53: 41.50234822 | K53: 100.0 | L53: 80.2 | M53: 3.5 | N53: 40.00 | O53: 1.4 | P53: 18.78 | Q53: 197.91 | R53: 3.46 | S53: 138.54 | T53: 1.39 | U53: 276.57 | V53: 346.34 | W53: 69.78 | X53: 27.91081317 | Y53: 41.50234822 | Z53: 1.979100717 | AC53: Cantidad de Equilibrio | AD53: =AD68 -> 22.3 | AF53: 0.60 | AG53: 18.69 | AH53: 3,023.46 | AI53: 161.77 | AJ53: 107.01 | AK53: 54.76 | AL53: 129.52 | AM53: 158.0 | AN53: 158.9 | AO53: 22.3 | AP53: 95.33 | AQ53: 13.4 | AR53: (70.44) | AS53: 2,953.02 | AT53: 158.94 | AU53: 94.80 | AV53: 13.08 | AW53: 3,465.73 | AX53: 3,445.19 | AY53: (20.54) | AZ53: (12.33)
A54: Cantidad y (minimiza CMe) | B54: 32.726 | D54: 0.45 | E54: 2.23 | F54: 190.16 | G54: 85.41 | H54: 53.90 | I54: 31.51 | J54: 47.89739192 | K54: 100.0 | L54: 80.2 | M54: 3.5 | N54: 45.00 | O54: 1.6 | P54: 32.49 | Q54: 222.65 | R54: 3.46 | S54: 155.85 | T54: 1.56 | U54: 276.57 | V54: 346.34 | W54: 69.78 | X54: 31.39966481 | Y54: 47.89739192 | Z54: 2.226488306 | AC54: Costo Unitario | AD54: =(AD42*AD53)+AD43+(AD44/AD53) -> 158.9 | AF54: 0.65 | AG54: 20.25 | AH54: 3,234.90 | AI54: 159.77 | AJ54: 98.78 | AK54: 60.99 | AL54: 141.98 | AM54: 158.0 | AN54: 158.9 | AO54: 22.3 | AP54: 103.28 | AQ54: 14.5 | AR54: (35.79) | AS54: 3,199.11 | AT54: 158.94 | AU54: 102.70 | AV54: 14.17 | AW54: 3,465.73 | AX54: 3,445.19 | AY54: (20.54) | AZ54: (13.35)
A55: Inserte un valor y particular | B55: =B77 -> 3.5 | D55: 0.50 | E55: 2.47 | F55: 202.92 | G55: 82.02 | H55: 48.51 | I55: 33.52 | J55: 55.39404678 | K55: 100.0 | L55: 80.2 | M55: 3.5 | N55: 50.00 | O55: 1.8 | P55: 44.47 | Q55: 247.39 | R55: 3.46 | S55: 173.17 | T55: 1.73 | U55: 276.57 | V55: 346.34 | W55: 69.78 | X55: 34.88851646 | Y55: 55.39404678 | Z55: 2.473875896 | AC55: Cantidad y (minimiza CMe) | AD55: =AI55 -> 158.942 | AF55: 0.70 | AG55: 21.81 | AH55: 3,465.73 | AI55: 158.94 | AJ55: 91.72 | AK55: 67.22 | AL55: 154.44 | AM55: 158.0 | AN55: 158.9 | AO55: 22.3 | AP55: 111.22 | AQ55: 15.6 | AR55: (20.54) | AS55: 3,445.19 | AT55: 158.94 | AU55: 110.60 | AV55: 15.26 | AW55: 3,465.73 | AX55: 3,445.19 | AY55: (20.54) | AZ55: (14.38)
D56: 0.55 | E56: 2.72 | F56: 217.66 | G56: 79.99 | H56: 44.10 | I56: 35.89 | J56: 63.99231278 | K56: 100.0 | L56: 80.2 | M56: 3.5 | N56: 55.00 | O56: 1.9 | P56: 54.46 | Q56: 272.13 | R56: 3.46 | S56: 190.49 | T56: 1.90 | U56: 276.57 | V56: 346.34 | W56: 69.78 | X56: 38.37736811 | Y56: 63.99231278 | Z56: 2.721263485 | AC56: Ingreso Total | AD56: =AD52*AD53 -> 3515.500 | AF56: 0.75 | AG56: 23.36 | AH56: 3,715.98 | AI56: 159.06 | AJ56: 85.61 | AK56: 73.45 | AL56: 166.9 | AM56: 158.0 | AN56: 158.9 | AO56: 22.3 | AP56: 119.17 | AQ56: 16.7 | AR56: (24.70) | AS56: 3,691.28 | AT56: 158.94 | AU56: 118.50 | AV56: 16.35 | AW56: 3,465.73 | AX56: 3,445.19 | AY56: (20.54) | AZ56: (15.41)
A57: Precio | B57: =Merc_Comp_y3_Equilibrio!D12 -> 100.0 | D57: 0.60 | E57: 2.97 | F57: 234.67 | G57: 79.05 | H57: 40.42 | I57: 38.63 | J57: 73.69218994 | K57: 100.0 | L57: 80.2 | M57: 3.5 | N57: 60.00 | O57: 2.1 | P57: 62.20 | Q57: 296.87 | R57: 3.46 | S57: 207.81 | T57: 2.08 | U57: 276.57 | V57: 346.34 | W57: 69.78 | X57: 41.86621975 | Y57: 73.69218994 | Z57: 2.968651075 | AC57: Costo Total | AD57: =AD60 -> 3535.250 | AF57: 0.80 | AG57: 24.92 | AH57: 3,985.63 | AI57: 159.94 | AJ57: 80.26 | AK57: 79.68 | AL57: 179.36 | AM57: 158.0 | AN57: 158.9 | AO57: 22.3 | AP57: 127.11 | AQ57: 17.8 | AR57: (48.27) | AS57: 3,937.36 | AT57: 158.94 | AU57: 126.40 | AV57: 17.44 | AW57: 3,465.73 | AX57: 3,445.19 | AY57: (20.54) | AZ57: (16.43)
A58: Cantidad de Equilibrio | B58: =B77 -> 3.5 | D58: 0.65 | E58: 3.22 | F58: 254.21 | G58: 79.05 | H58: 37.31 | I58: 41.73 | J58: 84.49367824 | K58: 100.0 | L58: 80.2 | M58: 3.5 | N58: 65.00 | O58: 2.3 | P58: 67.39 | Q58: 321.60 | R58: 3.46 | S58: 225.12 | T58: 2.25 | U58: 276.57 | V58: 346.34 | W58: 69.78 | X58: 45.3550714 | Y58: 84.49367824 | Z58: 3.216038664 | AC58: Beneficio | AD58: =AD56-AD57 -> -19.8 | AF58: 0.85 | AG58: 26.48 | AH58: 4,274.68 | AI58: 161.45 | AJ58: 75.54 | AK58: 85.91 | AL58: 191.82 | AM58: 158.0 | AN58: 158.9 | AO58: 22.3 | AP58: 135.05 | AQ58: 18.9 | AR58: (91.24) | AS58: 4,183.45 | AT58: 158.94 | AU58: 134.30 | AV58: 18.53 | AW58: 3,465.73 | AX58: 3,445.19 | AY58: (20.54) | AZ58: (17.46)
A59: Costo Unitario | B59: =(B46*(B58^2))+(B47*B58)+B48+(B49/B58) -> 80.2 | D59: 0.70 | E59: 3.46 | F59: 276.57 | G59: 79.85 | H59: 34.65 | I59: 45.21 | J59: 96.3967777 | K59: 100.0 | L59: 80.2 | M59: 3.5 | N59: 70.00 | O59: 2.5 | P59: 69.78 | Q59: 346.34 | R59: 3.46 | S59: 242.44 | T59: 2.42 | U59: 276.57 | V59: 346.34 | W59: 69.78 | X59: 48.84392304 | Y59: 96.3967777 | Z59: 3.463426254 | AF59: 0.90 | AG59: 28.04 | AH59: 4,583.14 | AI59: 163.48 | AJ59: 71.34 | AK59: 92.14 | AL59: 204.28 | AM59: 158.0 | AN59: 158.9 | AO59: 22.3 | AP59: 143.00 | AQ59: 20.0 | AR59: (153.61) | AS59: 4,429.53 | AT59: 158.94 | AU59: 142.20 | AV59: 19.62 | AW59: 3,465.73 | AX59: 3,445.19 | AY59: (20.54) | AZ59: (18.49)
A60: Cantidad y (minimiza CMe) | B60: =G59 -> 79.853 | D60: 0.75 | E60: 3.71 | F60: 302.00 | G60: 81.38 | H60: 32.34 | I60: 49.05 | J60: 109.4014883 | K60: 100.0 | L60: 80.2 | M60: 3.5 | N60: 75.00 | O60: 2.7 | P60: 69.08 | Q60: 371.08 | R60: 3.46 | S60: 259.76 | T60: 2.60 | U60: 276.57 | V60: 346.34 | W60: 69.78 | X60: 52.33277469 | Y60: 109.4014883 | Z60: 3.710813843 | AC60: Costo Total | AD60: =AD42*(AD50^(2))+AD43*AD50+AD44 -> 3535.3 | AF60: 0.95 | AG60: 29.59 | AH60: 4,911.01 | AI60: 165.95 | AJ60: 67.58 | AK60: 98.37 | AL60: 216.74 | AM60: 158.0 | AN60: 158.9 | AO60: 22.3 | AP60: 150.94 | AQ60: 21.1 | AR60: (235.40) | AS60: 4,675.62 | AT60: 158.94 | AU60: 150.10 | AV60: 20.71 | AW60: 3,465.73 | AX60: 3,445.19 | AY60: (20.54) | AZ60: (19.51)
A61: Ingreso Total | B61: =B57*B58 -> 353.4108422 | D61: 0.80 | E61: 3.96 | F61: 330.79 | G61: 83.57 | H61: 30.32 | I61: 53.25 | J61: 123.5078101 | K61: 100.0 | L61: 80.2 | M61: 3.5 | N61: 80.00 | O61: 2.8 | P61: 65.03 | Q61: 395.82 | R61: 3.46 | S61: 277.07 | T61: 2.77 | U61: 276.57 | V61: 346.34 | W61: 69.78 | X61: 55.82162634 | Y61: 123.5078101 | Z61: 3.958201433 | AC61: Costo Fijo | AD61: =AD44 -> 2000.0 | AF61: 1.00 | AG61: 31.15 | AH61: 5,258.29 | AI61: 168.81 | AJ61: 64.21 | AK61: 104.60 | AL61: 229.2 | AM61: 158.0 | AN61: 158.9 | AO61: 22.3 | AP61: 158.89 | AQ61: 22.3 | AR61: (336.59) | AS61: 4,921.70 | AT61: 158.94 | AU61: 158.00 | AV61: 21.81 | AW61: 3,465.73 | AX61: 3,445.19 | AY61: (20.54) | AZ61: (20.54)
A62: Costo Total | B62: =B65 -> 283.506 | D62: 0.85 | E62: 4.21 | F62: 363.20 | G62: 86.36 | H62: 28.53 | I62: 57.83 | J62: 138.715743 | K62: 100.0 | L62: 80.2 | M62: 3.5 | N62: 85.00 | O62: 3.0 | P62: 57.36 | Q62: 420.56 | R62: 3.46 | S62: 294.39 | T62: 2.94 | U62: 276.57 | V62: 346.34 | W62: 69.78 | X62: 59.31047798 | Y62: 138.715743 | Z62: 4.205589023 | AC62: Costo Variable | AD62: =AD60-AD61 -> 1535.3 | AF62: 1.00 | AG62: 31.15 | AH62: 5,258.29 | AI62: =(AH62/AG62) -> 168.81 | AJ62: 64.21 | AK62: =AI62-AJ62 -> 104.60 | AL62: 229.2
A63: Beneficio | B63: =B61-B62 -> 69.9 | D63: 0.90 | E63: 4.45 | F63: 399.51 | G63: 89.72 | H63: 26.95 | I63: 62.77 | J63: 155.025287 | K63: 100.0 | L63: 80.2 | M63: 3.5 | N63: 90.00 | O63: 3.2 | P63: 45.79 | Q63: 445.30 | R63: 3.46 | S63: 311.71 | T63: 3.12 | U63: 276.57 | V63: 346.34 | W63: 69.78 | X63: 62.79932963 | Y63: 155.025287 | Z63: 4.452976612 | AC63: Costo Medio | AD63: =AD60/AD50 -> 158.9
A64: impuesto por unidad | B64: =Merc_Comp_y3_Equilibrio!D20 -> 10.000 | D64: 0.95 | E64: 4.70 | F64: 439.99 | G64: 93.61 | H64: 25.53 | I64: 68.08 | J64: 172.4364422 | K64: 100.0 | L64: 80.2 | M64: 3.5 | N64: 95.00 | O64: 3.4 | P64: 30.04 | Q64: 470.04 | R64: 3.46 | S64: 329.03 | T64: 3.29 | U64: 276.57 | V64: 346.34 | W64: 69.78 | X64: 66.28818127 | Y64: 172.4364422 | Z64: 4.700364202 | AC64: Costo Marginal | AD64: =(2*AD42*AD50)+AD43 -> 158.0 | AF64: 100.00 | AH64: =AI61*1.1 -> 185.69 | AO64: MAX CT, IT | AP64: =MAX(AH55,AS55) -> 3,465.73 | AQ64: Max P | AR64: =MAX(AR41:AR61) -> (20.54)
A65: Costo Total | B65: =B46*(B55^(3))+B47*(B55^(2))+B48*B55+B49 -> 283.5 | D65: 1.00 | E65: 4.95 | F65: 484.92 | G65: 98.01 | H65: 24.25 | I65: 73.75 | J65: 190.9492086 | K65: 100.0 | L65: 80.2 | M65: 3.5 | N65: 100.00 | O65: 3.5 | P65: 9.86 | Q65: 494.78 | R65: 3.46 | S65: 346.34 | T65: 3.46 | U65: 276.57 | V65: 346.34 | W65: 69.78 | X65: 69.77703292 | Y65: 190.9492086 | Z65: 4.947751791 | AC65: Costo Fijo Medio | AD65: =AD61/AD50 -> 89.9 | AF65: =AD42-(AD44*(POWER(AF64,-2))) -> 3.80 | AH65: 102.025
A66: Costo Fijo | B66: =B49 -> 120.0 | D66: 1.00 | E66: 4.95 | F66: 484.92 | G66: =(F66/E66) -> 98.01 | H66: 24.25 | I66: =G66-H66 -> 73.75 | J66: 190.9492086 | P66: 9.86 | Q66: 494.78 | AC66: Costo Variable Medio | AD66: =AD62/AD50 -> 69.0
A67: Costo Variable | B67: =B65-B66 -> 163.5
A68: Costo Medio | B68: =B65/B55 -> 80.2 | F68: =G65*1.1 -> 107.81 | M68: MAX CT, IT | N68: =MAX(F59,Q59) -> 346.34 | O68: Max P | P68: =MAX(P45:P65) -> 69.78 | AC68: y2 equilibrio | AD68: =(AD52-AD43)/(2*AD42) -> 22.3
A69: Costo Marginal | B69: =(3*B46*(B55^(2)))+(2*B47*B55)+B48 -> 100.0 | F69: 102.025
A70: Costo Fijo Medio | B70: =B66/B55 -> 34.0
A71: Costo Variable Medio | B71: =B67/B55 -> 46.3
A72: min | B72: =(B46*(B54^(3))+B47*(B54^(2))+B48*B54+B49)/B54 -> 3050.2
A73: costo mínimo | B73: =(B46*(Merc_Comp_y3_Equilibrio!D14^(3))+B47*(Merc_Comp_y3_Equilibrio!D14^(2))+B48*Merc_Comp_y3_Equilibrio!D14+B49)/Merc_Comp_y3_Equilibrio!D14 -> 78.93922382
B74: =2*B46*(B54)+B47-B49*(B54^(-2)) -> 190.241833
A76: y1 equilibrio | B76: =((-1*(2*B47*-1))+((((2*-1*B47)^(2))-((4*(3*-1*B46))*((B48*-1)+B57)))^(1/2)))/((2*(3*-1)*B46)) -> -2.2
A77: y2 equilibrio | B77: =((-1*(2*B47*-1))-((((2*-1*B47)^(2))-((4*(3*-1*B46))*((B48*-1)+B57)))^(1/2)))/((2*(3*-1)*B46)) -> 3.5
A79: Min CMg | B79: =(3*B46*(B80^2))+(2*B47*B80)+B48 -> 27.0
B80: =(B47/(2*B46))*-1 -> 1.0
A84: FUNCIÒN DE COSTOS POLINOMIO DE TERCER GRADO OFERTA
D85: Ponderador | E85: Producto Total | F85: COSTO TOTAL | G85: COSTO MEDIO | H85: COSTO FIJO MEDIO | I85: COSTO VARIABLE MEDIO | J85: COSTO MARGINAL | K85: PRECIO=Ingreso Marginal | L85: COSTO UNITARIO | M85: LineY | N85: LineP | O85: LineCU | P85: P | Q85: IT | R85: Line Xprod | S85: Line Yprod | T85: Line X | U85: Line CT | V85: Line IT | W85: Max P | X85: Max P | Y85: OFERTA | Z85: Q
D86: 0 | E86: =D86*$B$94 -> 0 | F86: =$B$90+($B$89*E86)+($B$88*(E86^2))+($B$87*(E86^3))+($B$92*(E86^4)) -> 45,000.00 | G86: 0 | H86: 0 | I86: =G86-H86 -> 0 | J86: =(4*$B$9*(E86^3))+(3*$B$4*(E86^2))+(2*$B$5*(E86^1))+($B$6) -> 50 | K86: =$B$98 -> 1500.0 | L86: =$B$100 -> 993.3 | M86: =$B$99 -> 91.3 | N86: =(MAX(K86,L86))*D86 -> 0 | O86: =$B$99*D86 -> 0.0 | P86: =Q86-F86 -> (45,000.00) | Q86: =$B$98*E86 -> 0 | R86: =$E$100 -> 89.45 | S86: =D86*$N$109 -> 0 | T86: =$E$100*D86 -> 0 | U86: =$F$100 -> 87,977.95 | V86: =$Q$100 -> 134,173.32 | W86: =$P$109 -> 46,195.36 | X86: =D86*$P$109 -> 0
A87: a | B87: =Merc_Comp_y3_Fn_Oferta!D6 -> 0.0600 | C87: Y3 | D87: 0.05 | E87: =D87*$B$94 -> 6.39 | F87: =$B$90+($B$89*E87)+($B$88*(E87^2))+($B$87*(E87^3))+($B$92*(E87^4)) -> 45,018.21 | G87: =(F87/E87) -> 7,045.98 | H87: =$B$90/E87 -> 7,043.13 | I87: =G87-H87 -> 2.85 | J87: =(4*$B$92*(E87^3))+(3*$B$87*(E87^2))+(2*$B$88*(E87^1))+($B$89) -> 7.749228392 | K87: =$B$98 -> 1500.0 | L87: =$B$100 -> 993.3 | M87: =$B$99 -> 91.3 | N87: 75.00 | O87: =$B$99*D87 -> 4.6 | P87: (35,434.40) | Q87: =$B$98*E87 -> 9,583.81 | R87: =$E$100 -> 89.45 | S87: =D87*$N$109 -> 6,708.67 | T87: =$E$100*D87 -> 4.47 | U87: =$F$100 -> 87,977.95 | V87: =$Q$100 -> 134,173.32 | W87: =$P$109 -> 46,195.36 | X87: =D87*$P$109 -> 2309.768136 | Y87: =IF($J87>$I87,J87,($B$102*1.01)) -> 7.749228392 | Z87: =IF(E87<$B$123,$B$123,E87) -> 6.389205546
A88: b | B88: =Merc_Comp_y3_Fn_Oferta!D7 -> 0.0001 | C88: Y2 | D88: 0.10 | E88: 12.78 | F88: =$B$90+($B$89*E88)+($B$88*(E88^2))+($B$87*(E88^3))+($B$92*(E88^4)) -> 45,130.32 | G88: 3,531.76 | H88: =$B$90/E88 -> 3,521.56 | I88: 10.20 | J88: =(4*$B$92*(E88^3))+(3*$B$87*(E88^2))+(2*$B$88*(E88^1))+($B$89) -> 29.79435789 | K88: 1500.0 | L88: 993.3 | M88: 91.3 | N88: 150.00 | O88: 9.1 | P88: (25,962.70) | Q88: 19,167.62 | R88: 89.45 | S88: 13,417.33 | T88: 8.94 | U88: 87,977.95 | V88: 134,173.32 | W88: 46,195.36 | X88: 4619.536272 | Y88: =IF($J88>$I88,J88,($B$102*1.01)) -> 29.79435789 | Z88: =IF(E88<$B$123,$B$123,E88) -> 12.77841109
A89: c | B89: =Merc_Comp_y3_Fn_Oferta!D8 -> 0.4000 | C89: Y | D89: 0.15 | E89: 19.17 | F89: 45,430.23 | G89: 2,370.16 | H89: 2,347.71 | I89: 22.45 | J89: 66.53538848 | K89: 1500.0 | L89: 993.3 | M89: 91.3 | N89: 225.00 | O89: 13.7 | P89: (16,678.81) | Q89: 28,751.42 | R89: 89.45 | S89: 20,126.00 | T89: 13.42 | U89: 87,977.95 | V89: 134,173.32 | W89: 46,195.36 | X89: 6929.304408 | Y89: 66.53538848 | Z89: 19.16761664
A90: d | B90: =Merc_Comp_y3_Fn_Oferta!D9 -> 45000.0 | C90: 0 | D90: 0.20 | E90: 25.56 | F90: 46,011.84 | G90: 1,800.37 | H90: 1,760.78 | I90: 39.59 | J90: 117.9723202 | K90: 1500.0 | L90: 993.3 | M90: 91.3 | N90: 300.00 | O90: 18.3 | P90: (7,676.60) | Q90: 38,335.23 | R90: 89.45 | S90: 26,834.66 | T90: 17.89 | U90: 87,977.95 | V90: 134,173.32 | W90: 46,195.36 | X90: 9239.072545 | Y90: 117.9723202 | Z90: 25.55682218
A91: p | D91: 0.25 | E91: 31.95 | F91: 46,969.03 | G91: 1,470.26 | H91: 1,408.63 | I91: 61.64 | J91: 184.105153 | K91: 1500.0 | L91: 993.3 | M91: 91.3 | N91: 375.00 | O91: 22.8 | P91: 950.01 | Q91: 47,919.04 | R91: 89.45 | S91: 33,543.33 | T91: 22.36 | U91: 87,977.95 | V91: 134,173.32 | W91: 46,195.36 | X91: 11548.84068 | Y91: 184.105153 | Z91: 31.94602773
B92: 0.0 | D92: 0.30 | E92: 38.34 | F92: 48,395.71 | G92: 1,262.43 | H92: 1,173.85 | I92: 88.58 | J92: 264.9338869 | K92: 1500.0 | L92: 993.3 | M92: 91.3 | N92: 450.00 | O92: 27.4 | P92: 9,107.14 | Q92: 57,502.85 | R92: 89.45 | S92: 40,251.99 | T92: 26.83 | U92: 87,977.95 | V92: 134,173.32 | W92: 46,195.36 | X92: 13858.60882 | Y92: 264.9338869 | Z92: 38.33523327
D93: 0.35 | E93: 44.72 | F93: 50,385.76 | G93: 1,126.58 | H93: 1,006.16 | I93: 120.42 | J93: 360.4585219 | K93: 1500.0 | L93: 993.3 | M93: 91.3 | N93: 525.00 | O93: 31.9 | P93: 16,700.90 | Q93: 67,086.66 | R93: 89.45 | S93: 46,960.66 | T93: 31.31 | U93: 87,977.95 | V93: 134,173.32 | W93: 46,195.36 | X93: 16168.37695 | Y93: 360.4585219 | Z93: 44.72443882
A94: Máxima cantidad de y | B94: =B120*1.4 -> 127.8 | D94: 0.40 | E94: 51.11 | F94: 53,033.09 | G94: 1,037.55 | H94: 880.39 | I94: 157.16 | J94: 470.679058 | K94: 1500.0 | L94: 993.3 | M94: 91.3 | N94: 600.00 | O94: 36.5 | P94: 23,637.38 | Q94: 76,670.47 | R94: 89.45 | S94: 53,669.33 | T94: 35.78 | U94: 87,977.95 | V94: 134,173.32 | W94: 46,195.36 | X94: 18478.14509 | Y94: 470.679058 | Z94: 51.11364437
A95: Cantidad y (minimiza CMe) | B95: 32.726 | D95: 0.45 | E95: 57.50 | F95: 56,431.59 | G95: 981.37 | H95: 782.57 | I95: 198.80 | J95: 595.5954952 | K95: 1500.0 | L95: 993.3 | M95: 91.3 | N95: 675.00 | O95: 41.1 | P95: 29,822.68 | Q95: 86,254.27 | R95: 89.45 | S95: 60,377.99 | T95: 40.25 | U95: 87,977.95 | V95: 134,173.32 | W95: 46,195.36 | X95: 20787.91323 | Y95: 595.5954952 | Z95: 57.50284991
A96: Inserte un valor y particular | B96: =B120 -> 91.3 | D96: 0.50 | E96: 63.89 | F96: 60,675.15 | G96: 949.65 | H96: 704.31 | I96: 245.34 | J96: 735.2078335 | K96: 1500.0 | L96: 993.3 | M96: 91.3 | N96: 750.00 | O96: 45.6 | P96: 35,162.93 | Q96: 95,838.08 | R96: 89.45 | S96: 67,086.66 | T96: 44.72 | U96: 87,977.95 | V96: 134,173.32 | W96: 46,195.36 | X96: 23097.68136 | Y96: 735.2078335 | Z96: 63.89205546
D97: 0.55 | E97: 70.28 | F97: 65,857.68 | G97: 937.06 | H97: 640.28 | I97: 296.77 | J97: 889.5160729 | K97: 1500.0 | L97: 993.3 | M97: 91.3 | N97: 825.00 | O97: 50.2 | P97: 39,564.21 | Q97: 105,421.89 | R97: 89.45 | S97: 73,795.32 | T97: 49.20 | U97: 87,977.95 | V97: 134,173.32 | W97: 46,195.36 | X97: 25407.4495 | Y97: 889.5160729 | Z97: 70.281261
A98: Precio | B98: =Merc_Comp_y3_Fn_Oferta!D12 -> 1500.0 | D98: 0.60 | E98: 76.67 | F98: 72,073.05 | G98: 940.04 | H98: 586.93 | I98: 353.11 | J98: 1058.520213 | K98: 1500.0 | L98: 993.3 | M98: 91.3 | N98: 900.00 | O98: 54.8 | P98: 42,932.65 | Q98: 115,005.70 | R98: 89.45 | S98: 80,503.99 | T98: 53.67 | U98: 87,977.95 | V98: 134,173.32 | W98: 46,195.36 | X98: 27717.21763 | Y98: 1058.520213 | Z98: 76.67046655
A99: Cantidad de Equilibrio | B99: =B120 -> 91.3 | D99: 0.65 | E99: 83.06 | F99: 79,415.18 | G99: 956.12 | H99: 541.78 | I99: 414.34 | J99: 1242.220255 | K99: 1500.0 | L99: 993.3 | M99: 91.3 | N99: 975.00 | O99: 59.3 | P99: 45,174.33 | Q99: 124,589.51 | R99: 89.45 | S99: 87,212.66 | T99: 58.14 | U99: 87,977.95 | V99: 134,173.32 | W99: 46,195.36 | X99: 30026.98577 | Y99: 1242.220255 | Z99: 83.0596721
A100: Costo Unitario | B100: =(B87*(B99^2))+(B88*B99)+B89+(B90/B99) -> 993.3 | D100: 0.70 | E100: 89.45 | F100: 87,977.95 | G100: 983.56 | H100: 503.08 | I100: 480.48 | J100: 1440.616198 | K100: 1500.0 | L100: 993.3 | M100: 91.3 | N100: 1,050.00 | O100: 63.9 | P100: 46,195.36 | Q100: 134,173.32 | R100: 89.45 | S100: 93,921.32 | T100: 62.61 | U100: 87,977.95 | V100: 134,173.32 | W100: 46,195.36 | X100: 32336.75391 | Y100: 1440.616198 | Z100: 89.44887764
A101: Cantidad y (minimiza CMe) | B101: =G100 -> 983.556 | D101: 0.75 | E101: 95.84 | F101: 97,855.27 | G101: 1,021.05 | H101: 469.54 | I101: 551.51 | J101: 1653.708042 | K101: 1500.0 | L101: 993.3 | M101: 91.3 | N101: 1,125.00 | O101: 68.5 | P101: 45,901.86 | Q101: 143,757.12 | R101: 89.45 | S101: 100,629.99 | T101: 67.09 | U101: 87,977.95 | V101: 134,173.32 | W101: 46,195.36 | X101: 34646.52204 | Y101: 1653.708042 | Z101: 95.83808319
A102: Costo Varianle Medio Mínimo | B102: =-B88/(2*B87) -> -0.001 | D102: 0.80 | E102: 102.23 | F102: 109,141.01 | G102: 1,067.63 | H102: 440.20 | I102: 627.44 | J102: 1881.495787 | K102: 1500.0 | L102: 993.3 | M102: 91.3 | N102: 1,200.00 | O102: 73.0 | P102: 44,199.92 | Q102: 153,340.93 | R102: 89.45 | S102: 107,338.65 | T102: 71.56 | U102: 87,977.95 | V102: 134,173.32 | W102: 46,195.36 | X102: 36956.29018 | Y102: 1881.495787 | Z102: 102.2272887
A103: Cantidad y (minimiza CVMe) | B103: =MAX(D110:D111) -> 2.583 | D103: 0.85 | E103: 108.62 | F103: 121,929.09 | G103: 1,122.57 | H103: 414.30 | I103: 708.26 | J103: 2123.979433 | K103: 1500.0 | L103: 993.3 | M103: 91.3 | N103: 1,275.00 | O103: 77.6 | P103: 40,995.65 | Q103: 162,924.74 | R103: 89.45 | S103: 114,047.32 | T103: 76.03 | U103: 87,977.95 | V103: 134,173.32 | W103: 46,195.36 | X103: 39266.05831 | Y103: 2123.979433 | Z103: 108.6164943
A104: Ingreso Total | B104: =B98*B99 -> 136911.5474 | D104: 0.90 | E104: 115.01 | F104: 136,313.39 | G104: 1,185.28 | H104: 391.28 | I104: 793.99 | J104: 2381.15898 | K104: 1500.0 | L104: 993.3 | M104: 91.3 | N104: 1,350.00 | O104: 82.1 | P104: 36,195.16 | Q104: 172,508.55 | R104: 89.45 | S104: 120,755.98 | T104: 80.50 | U104: 87,977.95 | V104: 134,173.32 | W104: 46,195.36 | X104: 41575.82645 | Y104: 2381.15898 | Z104: 115.0056998
A105: Costo Total | B105: =B108 -> 90661.800 | D105: 0.95 | E105: 121.39 | F105: 152,387.82 | G105: 1,255.31 | H105: 370.69 | I105: 884.62 | J105: 2653.034428 | K105: 1500.0 | L105: 993.3 | M105: 91.3 | N105: 1,425.00 | O105: 86.7 | P105: 29,704.54 | Q105: 182,092.36 | R105: 89.45 | S105: 127,464.65 | T105: 84.98 | U105: 87,977.95 | V105: 134,173.32 | W105: 46,195.36 | X105: 43885.59459 | Y105: 2653.034428 | Z105: 121.3949054
A106: Beneficio | B106: =B104-B105 -> 46,249.7 | D106: 1.00 | E106: 127.78 | F106: 170,246.26 | G106: 1,332.30 | H106: 352.16 | I106: 980.14 | J106: 2939.605777 | K106: 1500.0 | L106: 993.3 | M106: 91.3 | N106: 1,500.00 | O106: 91.3 | P106: 21,429.91 | Q106: 191,676.17 | R106: 89.45 | S106: 134,173.32 | T106: 89.45 | U106: 87,977.95 | V106: 134,173.32 | W106: 46,195.36 | X106: 46195.36272 | Y106: 2939.605777 | Z106: 127.7841109
D107: 1.00 | E107: 127.78 | F107: 170,246.26 | G107: =(F107/E107) -> 1,332.30 | H107: 352.16 | I107: =G107-H107 -> 980.14 | J107: 2939.605777
A108: Costo Total | B108: =B87*(B96^(3))+B88*(B96^(2))+B89*B96+B90 -> 90661.8
A109: Costo Fijo | B109: =B90 -> 45000.0 | F109: =G106*1.1 -> 1,465.53 | M109: MAX CT, IT | N109: =MAX(F100,Q100) -> 134,173.32 | O109: Max P | P109: =MAX(P86:P106) -> 46,195.36
A110: Costo Variable | B110: =B108-B109 -> 45661.8 | D110: =(B88+((B88^(2)+(4*B87*B89))^(0.5)))/(2*B87) -> 2.582822365 | F110: 102.025
A111: Costo Medio | B111: =B108/B96 -> 993.3 | D111: =(B88-((B88^(2)+(4*B87*B89))^(0.5)))/(2*B87) -> -2.581155699
A112: Costo Marginal | B112: =(3*B87*(B96^(2)))+(2*B88*B96)+B89 -> 1500.0
A113: Costo Fijo Medio | B113: =B109/B96 -> 493.0
A114: Costo Variable Medio | B114: =B110/B96 -> 500.3
A115: min | B115: =(B87*(B95^(3))+B88*(B95^(2))+B89*B95+B90)/B95 -> 1439.7
A116: costo mínimo | B116: =(B87*(Merc_Comp_y3_Fn_Oferta!D14^(3))+B88*(Merc_Comp_y3_Fn_Oferta!D14^(2))+B89*Merc_Comp_y3_Fn_Oferta!D14+B90)/Merc_Comp_y3_Fn_Oferta!D14 -> 936.4449326
B117: =2*B87*(B95)+B88-B90*(B95^(-2)) -> -38.090886
A119: y1 equilibrio | B119: =((-1*(2*B88*-1))+((((2*-1*B88)^(2))-((4*(3*-1*B87))*((B89*-1)+B98)))^(1/2)))/((2*(3*-1)*B87)) -> -91.3
A120: y2 equilibrio | B120: =((-1*(2*B88*-1))-((((2*-1*B88)^(2))-((4*(3*-1*B87))*((B89*-1)+B98)))^(1/2)))/((2*(3*-1)*B87)) -> 91.3
A122: Min CMg | B122: =(3*B87*(B123^2))+(2*B88*B123)+B89 -> 0.4
B123: =(B88/(2*B87))*-1 -> -0.0

Sheet Merc_Comp_y2 (hidden)
A1: MERCADO COMPETITIVO
C5: Parámetros función costos
C6: b (y2) | D6: 4.0
C7: c (y) | D7: -20.0
C8: d | D8: 3,000.0
C9: Inserte los datos correspondientes
B10: Resultados del equilibrio
B11: Precio | D11: 400.0
B12: Cantidad de equilibrio | D12: =Oculto_Merc_Comp!AD16 -> 52.5
B13: Cantidad y (minimiza CMe) | D13: =SQRT(D8/D6) -> 27.39
B14: Costo unitario | D14: =Oculto_Merc_Comp!AD17 -> 247.14
B15: Costo medio (mínimo) | D15: =(D6*D13)+D7+(D8/D13) -> 199.09
B16: Ingreso total | D16: =Oculto_Merc_Comp!AD19 -> 21,000.0
B17: Costo total | D17: =Oculto_Merc_Comp!AD20 -> 12,975.0
B18: Beneficio | D18: =Oculto_Merc_Comp!AD21 -> 8,025.0
B20: Cuantificación de costos
B21: Costo total | D21: =Oculto_Merc_Comp!AD23 -> 12,975.00
B22: Costo fijo | D22: =Oculto_Merc_Comp!AD24 -> 3,000.00
B23: Costo variable | D23: =Oculto_Merc_Comp!AD25 -> 9,975.00
B24: Costo medio | D24: =Oculto_Merc_Comp!AD26 -> 247.14
B25: Costo marginal | D25: =Oculto_Merc_Comp!AD27 -> 400.00
B26: Costo fijo medio | D26: =Oculto_Merc_Comp!AD28 -> 57.14
B27: Costo variable medio | D27: =Oculto_Merc_Comp!AD29 -> 190.00
B30: Títulos
B31: Resultados
B32: Insertar datos
B33: Valores de equilibrio

Sheet Merc_Comp_y2_Equilibrio (hidden)
A1: MERCADO COMPETITIVO
C5: Parámetros función costos
C6: b (y2) | D6: 4.0
C7: c (y) | D7: -20.0
C8: d | D8: 2,000.0
C9: Inserte los datos correspondientes
B10: Resultados del equilibrio
B11: Precio | D11: 158.0
B12: Cantidad de equilibrio | D12: =Oculto_Merc_Comp!AD53 -> 22.3
B13: Cantidad y (minimiza CMe) | D13: =Oculto_Merc_Comp!AD49 -> 22.36
B14: Costo unitario | D14: =Oculto_Merc_Comp!AD54 -> 158.89
B15: Costo medio (mínimo) | D15: =(D6*D13)+D7+(D8/D13) -> 158.89
B16: Ingreso total | D16: =Oculto_Merc_Comp!AD56 -> 3,515.5
B17: Costo total | D17: =Oculto_Merc_Comp!AD57 -> 3,535.3
B18: Beneficio | D18: =Oculto_Merc_Comp!AD58 -> -19.8
B20: Cuantificación de costos
B21: Costo total | D21: =Oculto_Merc_Comp!AD60 -> 3,535.25
B22: Costo fijo | D22: =Oculto_Merc_Comp!AD61 -> 2,000.00
B23: Costo variable | D23: =Oculto_Merc_Comp!AD62 -> 1,535.25
B24: Costo medio | D24: =Oculto_Merc_Comp!AD63 -> 158.89
B25: Costo marginal | D25: =Oculto_Merc_Comp!AD64 -> 158.00
B26: Costo fijo medio | D26: =Oculto_Merc_Comp!AD65 -> 89.89
B27: Costo variable medio | D27: =Oculto_Merc_Comp!AD66 -> 69.00
B30: Títulos
B31: Resultados
B32: Insertar datos
B33: Valores de equilibrio
